fUST/lending_fUST_20250618
["ID","MTS","AMOUNT","RATE_DAILY","PERIOD"]
[366296015,1750179039786,-460.0,0.00024109,6]
[366296017,1750179039797,-169.61314744,0.00024109,6]
[366296019,1750179039807,-460.0,0.00024109,6]
[366296021,1750179039818,-460.0,0.00024109,6]
[366296024,1750179039829,-460.0,0.00024109,6]
[366296027,1750179039840,-460.0,0.00024109,6]
[366296029,1750179039851,-460.0,0.00024109,6]
[366296031,1750179039861,-460.0,0.00024109,6]
[366296033,1750179039872,-460.0,0.00024109,6]
[366296035,1750179039882,-460.0,0.00024109,6]
[366296037,1750179039892,-585.50616548,0.00024109,6]
[366296039,1750179039902,-460.0,0.00024109,6]
[366296041,1750179039912,-460.0,0.00024109,6]
[366296043,1750179039922,-460.0,0.00024109,6]
[366296045,1750179039937,-460.0,0.00024109,6]
[366296047,1750179039947,-190.13234079,0.00024109,6]
[366296050,1750179039958,-460.0,0.00024109,6]
[366296052,1750179039967,-460.0,0.00024109,6]
[366296054,1750179039978,-460.0,0.00024109,6]
[366296056,1750179039988,-460.0,0.00024109,6]
[366296058,1750179039998,-460.0,0.00024109,6]
[366296060,1750179040008,-460.0,0.00024109,6]
[366296062,1750179040019,-460.0,0.00024109,6]
[366296064,1750179040028,-460.0,0.00024109,6]
[366296066,1750179040038,-460.0,0.00024109,6]
[366296068,1750179040047,-384.35353115,0.00024109,6]
[366296070,1750179040057,-460.0,0.00024109,6]
[366296072,1750179040067,-388.29155037,0.00024109,6]
[366296074,1750179040076,-460.0,0.00024109,6]
[366296075,1750179040085,-460.0,0.00024109,6]
[366296077,1750179040095,-443.59996304,0.00024109,6]
[366296079,1750179040105,-772.44,0.00024109,6]
[366296081,1750179040115,-460.0,0.00024109,6]
[366296083,1750179040125,-460.0,0.00024109,6]
[366296085,1750179040135,-460.0,0.00024109,6]
[366296087,1750179040143,-460.0,0.00024109,6]
[366296089,1750179040153,-643.43,0.00024109,6]
[366296091,1750179040162,-460.0,0.00024109,6]
[366296093,1750179040171,-460.0,0.00024109,6]
[366296095,1750179040183,-460.0,0.00024109,6]
[366296097,1750179040193,-460.0,0.00024109,6]
[366296099,1750179040203,-460.0,0.00024109,6]
[366296101,1750179040214,-410.0,0.00024109,6]
[366296103,1750179040224,-465.71,0.00024109,6]
[366296105,1750179040235,-460.0,0.00024109,6]
[366296107,1750179040245,-151.66546,0.00024109,7]
[366296109,1750179040255,-460.0,0.00024109,6]
[366296111,1750179040264,-460.0,0.00024109,6]
[366296113,1750179040274,-934.22,0.00024109,6]
[366296115,1750179040283,-460.0,0.00024109,6]
[366296117,1750179040293,-460.0,0.00024109,6]
[366296120,1750179040302,-460.0,0.00024109,6]
[366296123,1750179040312,-460.0,0.00024109,6]
[366296126,1750179040321,-460.0,0.00024109,6]
[366296128,1750179040331,-460.0,0.00024109,6]
[366296131,1750179040341,-460.0,0.00024109,6]
[366296133,1750179040351,-1269.95,0.00024109,2]
[366296135,1750179040360,-460.0,0.00024109,6]
[366296137,1750179040370,-1619.21,0.00024109,6]
[366296139,1750179040379,-1345.7,0.00024109,6]
[366296141,1750179040389,-460.0,0.00024109,6]
[366296143,1750179040399,-179.16194446,0.00024109,6]
[366296145,1750179040408,-580.5,0.00024109,6]
[366296147,1750179040418,-460.0,0.00024109,6]
[366296149,1750179040427,-460.0,0.00024109,6]
[366296151,1750179040439,-522.79909602,0.00024109,6]
[366296153,1750179040448,-460.0,0.00024109,6]
[366296155,1750179040457,-460.0,0.00024109,6]
[366296157,1750179040467,-460.0,0.00024109,6]
[366296159,1750179040476,-460.0,0.00024109,6]
[366296161,1750179040488,-460.0,0.00024109,6]
[366296163,1750179040498,-460.0,0.00024109,6]
[366296165,1750179040507,-151.0,0.00024109,7]
[366296167,1750179040516,-460.0,0.00024109,6]
[366296169,1750179040530,-460.0,0.00024109,6]
[366296171,1750179040540,-460.0,0.00024109,6]
[366296173,1750179040549,-460.0,0.00024109,6]
[366296175,1750179040559,-460.0,0.00024109,6]
[366296177,1750179040568,-460.0,0.00024109,6]
[366296179,1750179040577,-460.0,0.00024109,6]
[366296181,1750179040587,-460.0,0.00024109,6]
[366296183,1750179040598,-366.817209,0.00024109,6]
[366296185,1750179040607,-460.0,0.00024109,6]
[366296187,1750179040617,-460.0,0.00024109,6]
[366296189,1750179040629,-460.0,0.00024109,6]
[366296191,1750179040638,-460.0,0.00024109,6]
[366296193,1750179040648,-588.03,0.00024109,6]
[366296195,1750179040657,-460.0,0.00024109,6]
[366296197,1750179040667,-460.0,0.00024109,6]
[366296199,1750179040676,-460.0,0.00024109,6]
[366296201,1750179040689,-460.0,0.00024109,6]
[366296203,1750179040699,-460.0,0.00024109,6]
[366296205,1750179040709,-460.0,0.00024109,6]
[366296207,1750179040719,-460.0,0.00024109,6]
[366296209,1750179040729,-202.07196316,0.00024109,6]
[366296211,1750179040739,-460.0,0.00024109,6]
[366296213,1750179040748,-235.5141655,0.00024109,6]
[366296215,1750179040758,-527.27497848,0.00024109,6]
[366296217,1750179040768,-460.0,0.00024109,6]
[366296219,1750179040778,-460.0,0.00024109,6]
[366296221,1750179040787,-460.0,0.00024109,6]
[366296223,1750179040796,-460.0,0.00024109,6]
[366296225,1750179040807,-460.0,0.00024109,6]
[366296227,1750179040816,-422.87216807,0.00024109,6]
[366296229,1750179040826,-460.0,0.00024109,6]
[366296231,1750179040835,-453.70154449,0.00024109,6]
[366296233,1750179040845,-306.57011729,0.00024109,6]
[366296235,1750179040854,-460.0,0.00024109,6]
[366296237,1750179040864,-460.0,0.00024109,6]
[366296239,1750179040875,-460.0,0.00024109,6]
[366296241,1750179040885,-460.0,0.00024109,6]
[366296243,1750179040895,-460.0,0.00024109,6]
[366296245,1750179040905,-460.0,0.00024109,6]
[366296247,1750179040914,-460.0,0.00024109,6]
[366296250,1750179040924,-460.0,0.00024109,6]
[366296252,1750179040937,-460.0,0.00024109,6]
[366296254,1750179040947,-460.0,0.00024109,6]
[366296256,1750179040956,-460.0,0.00024109,6]
[366296258,1750179040966,-460.0,0.00024109,6]
[366296260,1750179040976,-460.0,0.00024109,6]
[366296262,1750179040985,-630.32,0.00024109,6]
[366296264,1750179040995,-460.0,0.00024109,6]
[366296265,1750179041005,-460.0,0.00024109,6]
[366296267,1750179041015,-474.93,0.00024109,6]
[366296270,1750179041025,-460.0,0.00024109,6]
[366296272,1750179041035,-460.0,0.00024109,6]
[366296274,1750179041046,-560.74,0.00024109,6]
[366296276,1750179041055,-529.15865952,0.00024109,6]
[366296278,1750179041066,-460.0,0.00024109,6]
[366296279,1750179041076,-458.78370305,0.00024109,6]
[366296281,1750179041086,-634.35,0.00024109,6]
[366296283,1750179041096,-460.0,0.00024109,6]
[366296285,1750179041108,-460.0,0.00024109,6]
[366296287,1750179041117,-460.0,0.00024109,6]
[366296289,1750179041127,-460.0,0.00024109,6]
[366296291,1750179041137,-460.0,0.00024109,6]
[366296293,1750179041147,-460.0,0.00024109,6]
[366296295,1750179041157,-460.0,0.00024109,6]
[366296297,1750179041166,-460.0,0.00024109,6]
[366296299,1750179041176,-500.0,0.00024109,6]
[366296301,1750179041187,-460.0,0.00024109,6]
[366296303,1750179041197,-1575.2,0.00024109,6]
[366296305,1750179041207,-460.0,0.00024109,6]
[366296307,1750179041217,-880.65,0.00024109,6]
[366296309,1750179041227,-460.0,0.00024109,6]
[366296311,1750179041237,-460.0,0.00024109,6]
[366296313,1750179041248,-638.02,0.00024109,6]
[366296315,1750179041257,-460.0,0.00024109,6]
[366296317,1750179041267,-460.0,0.00024109,6]
[366296319,1750179041277,-460.0,0.00024109,6]
[366296321,1750179041287,-460.0,0.00024109,6]
[366296323,1750179041296,-460.0,0.00024109,6]
[366296325,1750179041305,-460.0,0.00024109,6]
[366296327,1750179041315,-460.0,0.00024109,6]
[366296329,1750179041325,-460.0,0.00024109,6]
[366296331,1750179041335,-483.35,0.00024109,6]
[366296333,1750179041344,-460.0,0.00024109,6]
[366296335,1750179041353,-460.0,0.00024109,6]
[366296337,1750179041363,-411.02982276,0.00024109,6]
[366296338,1750179041372,-460.0,0.00024109,6]
[366296339,1750179041382,-460.0,0.00024109,6]
[366296340,1750179041392,-460.0,0.00024109,6]
[366296341,1750179041402,-460.0,0.00024109,6]
[366296342,1750179041411,-460.0,0.00024109,6]
[366296343,1750179041421,-460.0,0.00024109,6]
[366296344,1750179041432,-151.0,0.00024109,7]
[366296345,1750179041442,-460.0,0.00024109,6]
[366296346,1750179041452,-460.0,0.00024109,6]
[366296347,1750179041461,-500.0,0.00024109,6]
[366296348,1750179041472,-460.0,0.00024109,6]
[366296349,1750179041485,-460.0,0.00024109,6]
[366296350,1750179041495,-460.0,0.00024109,6]
[366296351,1750179041505,-460.0,0.00024109,6]
[366296352,1750179041514,-517.96,0.00024109,6]
[366296353,1750179041526,-460.0,0.00024109,6]
[366296354,1750179041535,-460.0,0.00024109,6]
[366296355,1750179041545,-1170.66,0.00024109,6]
[366296356,1750179041556,-674.52,0.00024109,6]
[366296357,1750179041567,-460.0,0.00024109,6]
[366296358,1750179041577,-460.0,0.00024109,6]
[366296359,1750179041587,-502.55,0.00024109,6]
[366296360,1750179041597,-460.0,0.00024109,6]
[366296361,1750179041608,-460.0,0.00024109,6]
[366296362,1750179041618,-460.0,0.00024109,6]
[366296364,1750179041628,-504.68,0.00024109,6]
[366296366,1750179041638,-460.0,0.00024109,6]
[366296368,1750179041648,-460.0,0.00024109,6]
[366296370,1750179041657,-2150.05,0.00024109,6]
[366296372,1750179041666,-319.46499,0.00024109,7]
[366296374,1750179041676,-460.0,0.00024109,6]
[366296376,1750179041688,-995.22,0.00024109,6]
[366296378,1750179041698,-460.0,0.00024109,6]
[366296380,1750179041707,-460.0,0.00024109,6]
[366296382,1750179041717,-6373.84,0.00024109,6]
[366296384,1750179041726,-319.46499,0.00024109,7]
[366296386,1750179041736,-549.85770758,0.00024109,6]
[366296388,1750179041746,-460.0,0.00024109,6]
[366296390,1750179041755,-460.0,0.00024109,6]
[366296392,1750179041765,-151.0,0.00024109,7]
[366296393,1750179041775,-465.27856495,0.00024109,6]
[366296395,1750179041785,-460.0,0.00024109,6]
[366296397,1750179041795,-460.0,0.00024109,6]
[366296399,1750179041805,-460.0,0.00024109,6]
[366296401,1750179041815,-460.0,0.00024109,6]
[366296403,1750179041825,-460.0,0.00024109,6]
[366296406,1750179041836,-440.0,0.00024109,6]
[366296407,1750179041845,-460.0,0.00024109,6]
[366296409,1750179041855,-540.6,0.00024109,6]
[366296411,1750179041865,-460.0,0.00024109,6]
[366296413,1750179041874,-460.0,0.00024109,6]
[366296415,1750179041883,-460.0,0.00024109,6]
[366296417,1750179041893,-460.0,0.00024109,6]
[366296419,1750179041903,-460.0,0.00024109,6]
[366296421,1750179041914,-1719.87,0.00024109,6]
[366296423,1750179041923,-460.0,0.00024109,6]
[366296425,1750179041933,-2637.92,0.00024109,6]
[366296427,1750179041944,-460.0,0.00024109,6]
[366296429,1750179041954,-352.58164501,0.00024109,6]
[366296431,1750179041963,-4300.74,0.00024109,6]
[366296433,1750179041973,-480.01,0.00024109,6]
[366296435,1750179041983,-460.0,0.00024109,6]
[366296437,1750179041992,-460.0,0.00024109,6]
[366296439,1750179042002,-516.8091273,0.00024109,6]
[366296441,1750179042012,-460.0,0.00024109,6]
[366296443,1750179042021,-1282.28,0.00024109,6]
[366296445,1750179042031,-1341.67,0.00024109,6]
[366296447,1750179042040,-460.0,0.00024109,6]
[366296449,1750179042050,-460.0,0.00024109,6]
[366296451,1750179042059,-1374.79,0.00024109,6]
[366296453,1750179042069,-460.0,0.00024109,6]
[366296455,1750179042079,-460.0,0.00024109,6]
[366296457,1750179042088,-460.0,0.00024109,6]
[366296459,1750179042097,-460.0,0.00024109,6]
[366296461,1750179042106,-460.0,0.00024109,6]
[366296463,1750179042116,-460.0,0.00024109,6]
[366296465,1750179042126,-460.0,0.00024109,6]
[366296467,1750179042136,-1002.99,0.00024109,6]
[366296469,1750179042146,-1564.98,0.00024109,6]
[366296470,1750179042157,-444.5987658,0.00024109,6]
[366296472,1750179042166,-460.0,0.00024109,6]
[366296474,1750179042175,-460.0,0.00024109,6]
[366296476,1750179042187,-460.0,0.00024109,6]
[366296478,1750179042197,-435.78690828,0.00024109,6]
[366296480,1750179042207,-460.0,0.00024109,6]
[366296482,1750179042216,-2361.96,0.00024109,6]
[366296484,1750179042227,-460.0,0.00024109,6]
[366296486,1750179042237,-460.0,0.00024109,6]
[366296488,1750179042247,-460.0,0.00024109,6]
[366296490,1750179042256,-814.58,0.00024109,6]
[366296492,1750179042266,-460.0,0.00024109,6]
[366296494,1750179042275,-460.0,0.00024109,6]
[366296496,1750179042285,-460.0,0.00024109,6]
[366296498,1750179042295,-460.0,0.00024109,6]
[366296500,1750179042305,-460.0,0.00024109,6]
[366296502,1750179042315,-1076.59,0.00024109,6]
[366296504,1750179042324,-460.0,0.00024109,6]
[366296506,1750179042334,-460.0,0.00024109,6]
[366296508,1750179042343,-1063.37,0.00024109,6]
[366296510,1750179042353,-460.0,0.00024109,6]
[366296512,1750179042363,-460.0,0.00024109,6]
[366296514,1750179042372,-460.0,0.00024109,6]
[366296516,1750179042383,-460.0,0.00024109,6]
[366296518,1750179042392,-1830.27,0.00024109,6]
[366296520,1750179042402,-460.0,0.00024109,6]
[366296522,1750179042412,-460.0,0.00024109,6]
[366296524,1750179042422,-2744.53,0.00024109,6]
[366296526,1750179042432,-362.84586666,0.00024109,6]
[366296528,1750179042441,-8334.83,0.00024109,6]
[366296530,1750179042453,-6942.2,0.00024109,6]
[366296532,1750179042463,-9258.13,0.00024109,6]
[366296534,1750179042472,-460.0,0.00024109,6]
[366296536,1750179042483,-460.0,0.00024109,6]
[366296538,1750179042493,-460.0,0.00024109,6]
[366296540,1750179042502,-856.08,0.00024109,6]
[366296542,1750179042513,-460.0,0.00024109,6]
[366296544,1750179042524,-1633.03,0.00024109,6]
[366296546,1750179042534,-500.0,0.00024109,6]
[366296548,1750179042544,-460.0,0.00024109,6]
[366296550,1750179042554,-4846.17,0.00024109,6]
[366296552,1750179042564,-1338.73,0.00024109,6]
[366296554,1750179042574,-151.0,0.00024109,7]
[366296556,1750179042584,-278.16670904,0.00024109,6]
[366296559,1750179042594,-460.0,0.00024109,6]
[366296562,1750179042604,-460.0,0.00024109,6]
[366296565,1750179042615,-460.0,0.00024109,6]
[366296568,1750179042625,-460.0,0.00024109,6]
[366296571,1750179042635,-420.0,0.00024109,6]
[366296574,1750179042645,-8686.86,0.00024109,6]
[366296599,1750179042784,-460.0,0.00024109,6]
[366296601,1750179042795,-460.0,0.00024109,2]
[366296604,1750179042805,-460.0,0.00024109,6]
[366296607,1750179042815,-460.0,0.00024109,6]
[366296610,1750179042825,-460.0,0.00024109,6]
[366296613,1750179042835,-460.0,0.00024109,6]
[366296615,1750179042845,-460.0,0.00024109,6]
[366296617,1750179042855,-161.29075583,0.00024109,6]
[366296619,1750179042865,-460.0,0.00024109,6]
[366296622,1750179042875,-460.0,0.00024109,6]
[366296625,1750179042885,-1544.54,0.00024109,6]
[366296628,1750179042894,-952.12,0.00024109,6]
[366296631,1750179042905,-460.0,0.00024109,6]
[366296634,1750179042915,-256.61647403,0.00024109,6]
[366296637,1750179042925,-2436.24,0.00024109,6]
[366296640,1750179042935,-460.0,0.00024109,6]
[366296643,1750179042944,-1167.5,0.00024109,6]
[366296646,1750179042954,-520.02,0.00024109,6]
[366296649,1750179042963,-460.0,0.00024109,6]
[366296652,1750179042973,-689.81,0.00024109,6]
[366296655,1750179042983,-460.0,0.00024109,6]
[366296657,1750179042993,-460.0,0.00024109,6]
[366296659,1750179043002,-460.0,0.00024109,6]
[366296661,1750179043012,-413.78822105,0.00024109,6]
[366296663,1750179043023,-370.0,0.00024109,6]
[366296665,1750179043033,-151.0,0.00024109,7]
[366296667,1750179043043,-460.0,0.00024109,6]
[366296669,1750179043053,-460.0,0.00024109,6]
[366296671,1750179043063,-151.0,0.00024109,7]
[366296673,1750179043073,-460.0,0.00024109,6]
[366296675,1750179043082,-460.0,0.00024109,6]
[366296677,1750179043092,-460.0,0.00024109,6]
[366296679,1750179043102,-1035.12,0.00024109,6]
[366296681,1750179043111,-308.82249813,0.00024109,6]
[366296683,1750179043121,-1063.57,0.00024109,6]
[366296685,1750179043130,-460.0,0.00024109,6]
[366296687,1750179043141,-460.0,0.00024109,6]
[366296689,1750179043150,-460.0,0.00024109,6]
[366296691,1750179043160,-460.0,0.00024109,6]
[366296693,1750179043170,-460.0,0.00024109,6]
[366296695,1750179043180,-460.0,0.00024109,6]
[366296697,1750179043191,-460.0,0.00024109,6]
[366296699,1750179043201,-3168.7,0.00024109,6]
[366296701,1750179043211,-1948.93,0.00024109,6]
[366296703,1750179043222,-460.0,0.00024109,6]
[366296705,1750179043232,-460.0,0.00024109,6]
[366296707,1750179043241,-639.44,0.00024109,6]
[366296709,1750179043251,-460.0,0.00024109,6]
[366296711,1750179043261,-460.0,0.00024109,6]
[366296713,1750179043271,-460.0,0.00024109,6]
[366296715,1750179043281,-9003.81,0.00024109,6]
[366296717,1750179043290,-460.0,0.00024109,6]
[366296719,1750179043300,-460.0,0.00024109,6]
[366296721,1750179043310,-460.0,0.00024109,6]
[366296723,1750179043320,-460.0,0.00024109,6]
[366296725,1750179043330,-460.0,0.00024109,6]
[366296727,1750179043341,-460.0,0.00024109,6]
[366296729,1750179043351,-460.0,0.00024109,6]
[366296731,1750179043362,-6910.54,0.00024109,6]
[366296733,1750179043373,-460.0,0.00024109,6]
[366296735,1750179043384,-460.0,0.00024109,6]
[366296737,1750179043396,-460.0,0.00024109,6]
[366296739,1750179043407,-281.04995411,0.00024109,6]
[366296741,1750179043417,-460.0,0.00024109,6]
[366296743,1750179043427,-1833.36,0.00024109,6]
[366296745,1750179043438,-460.0,0.00024109,6]
[366296747,1750179043448,-460.0,0.00024109,6]
[366296749,1750179043458,-535.66,0.00024109,6]
[366296751,1750179043468,-370.0,0.00024109,6]
[366296753,1750179043477,-410.0,0.00024109,6]
[366296755,1750179043489,-460.0,0.00024109,6]
[366296757,1750179043499,-460.0,0.00024109,6]
[366296759,1750179043514,-460.0,0.00024109,6]
[366296761,1750179043525,-412.96735089,0.00024109,6]
[366296763,1750179043535,-460.0,0.00024109,6]
[366296765,1750179043545,-460.0,0.00024109,6]
[366296767,1750179043554,-428.51128961,0.00024109,6]
[366296768,1750179043564,-1432.49,0.00024109,6]
[366296770,1750179043573,-460.0,0.00024109,6]
[366296772,1750179043584,-3928.84,0.00024109,6]
[366296774,1750179043593,-422.34541584,0.00024109,6]
[366296776,1750179043603,-912.64,0.00024109,6]
[366296778,1750179043612,-1566.68,0.00024109,6]
[366296780,1750179043622,-460.0,0.00024109,6]
[366296782,1750179043631,-594.71492387,0.00024109,6]
[366296784,1750179043641,-460.0,0.00024109,6]
[366296786,1750179043651,-460.0,0.00024109,6]
[366296788,1750179043662,-460.0,0.00024109,6]
[366296790,1750179043674,-460.0,0.00024109,6]
[366296792,1750179043686,-460.0,0.00024109,6]
[366296794,1750179043697,-3638.23,0.00024109,6]
[366296796,1750179043708,-357.84091838,0.00024109,6]
[366296799,1750179043718,-460.0,0.00024109,6]
[366296801,1750179043730,-460.0,0.00024109,6]
[366296803,1750179043740,-460.0,0.00024109,6]
[366296806,1750179043751,-220.0,0.00024109,6]
[366296809,1750179043761,-460.0,0.00024109,6]
[366296812,1750179043772,-581.05847454,0.00024109,6]
[366296815,1750179043782,-460.0,0.00024109,6]
[366296818,1750179043792,-460.0,0.00024109,6]
[366296821,1750179043802,-460.0,0.00024109,6]
[366296824,1750179043813,-460.0,0.00024109,6]
[366296827,1750179043823,-228.03758262,0.00024109,6]
[366296829,1750179043833,-460.0,0.00024109,6]
[366296831,1750179043843,-460.0,0.00024109,6]
[366296833,1750179043853,-615.62,0.00024109,6]
[366296835,1750179043863,-460.0,0.00024109,6]
[366296837,1750179043873,-460.0,0.00024109,6]
[366296839,1750179043883,-508.25653715,0.00024109,6]
[366296841,1750179043893,-460.0,0.00024109,6]
[366296843,1750179043903,-460.0,0.00024109,6]
[366296845,1750179043914,-460.0,0.00024109,6]
[366296847,1750179043924,-4138.65,0.00024109,6]
[366296849,1750179043937,-465.66,0.00024109,6]
[366296851,1750179043947,-460.0,0.00024109,6]
[366296853,1750179043957,-500.0,0.00024109,6]
[366296855,1750179043966,-1120.82,0.00024109,6]
[366296857,1750179043976,-489.72652483,0.00024109,6]
[366296859,1750179043985,-460.0,0.00024109,6]
[366296861,1750179043995,-460.0,0.00024109,6]
[366296863,1750179044005,-2281.14,0.00024109,6]
[366296865,1750179044014,-460.0,0.00024109,6]
[366296866,1750179044024,-460.0,0.00024109,6]
[366296868,1750179044033,-9516.28,0.00024109,6]
[366296870,1750179044042,-792.55,0.00024109,6]
[366296872,1750179044052,-460.0,0.00024109,6]
[366296874,1750179044062,-460.0,0.00024109,6]
[366296876,1750179044072,-1847.59,0.00024109,6]
[366296878,1750179044082,-460.0,0.00024109,6]
[366296880,1750179044092,-775.22,0.00024109,6]
[366296882,1750179044102,-460.0,0.00024109,6]
[366296883,1750179044112,-460.0,0.00024109,6]
[366296884,1750179044122,-460.0,0.00024109,6]
[366296885,1750179044133,-460.0,0.00024109,6]
[366296886,1750179044143,-475.48,0.00024109,6]
[366296887,1750179044153,-550.44,0.00024109,6]
[366296888,1750179044163,-287.270598,0.00024109,7]
[366296889,1750179044174,-460.0,0.00024109,6]
[366296890,1750179044185,-460.0,0.00024109,6]
[366296891,1750179044195,-460.0,0.00024109,6]
[366296893,1750179044205,-460.0,0.00024109,6]
[366296895,1750179044215,-460.0,0.00024109,6]
[366296897,1750179044224,-460.0,0.00024109,6]
[366296899,1750179044233,-460.0,0.00024109,6]
[366296901,1750179044243,-460.0,0.00024109,6]
[366296903,1750179044253,-460.0,0.00024109,6]
[366296905,1750179044263,-1266.5,0.00024109,6]
[366296907,1750179044273,-460.0,0.00024109,6]
[366296909,1750179044283,-460.0,0.00024109,6]
[366296911,1750179044293,-460.0,0.00024109,6]
[366296913,1750179044304,-6837.03,0.00024109,6]
[366296915,1750179044314,-420.68166359,0.00024109,6]
[366296917,1750179044324,-460.0,0.00024109,6]
[366296919,1750179044334,-412.94259567,0.00024109,6]
[366296921,1750179044344,-460.0,0.00024109,6]
[366296922,1750179044353,-460.0,0.00024109,6]
[366296924,1750179044362,-460.0,0.00024109,6]
[366296926,1750179044372,-1325.29,0.00024109,6]
[366296928,1750179044382,-390.76392205,0.00024109,6]
[366296934,1750179044435,-69.23607795,0.00024109,6]
[366296936,1750179044446,-460.0,0.00024109,6]
[366296938,1750179044456,-460.0,0.00024109,6]
[366296940,1750179044466,-460.0,0.00024109,6]
[366296943,1750179044476,-680.79,0.00024109,6]
[366296945,1750179044487,-460.0,0.00024109,6]
[366296946,1750179044498,-460.0,0.00024109,6]
[366296948,1750179044509,-460.0,0.00024109,6]
[366296950,1750179044518,-460.0,0.00024109,6]
[366296952,1750179044529,-1152.07,0.00024109,6]
[366296954,1750179044538,-435.86755996,0.00024109,6]
[366296957,1750179044548,-460.0,0.00024109,6]
[366296958,1750179044557,-850.82,0.00024109,6]
[366296961,1750179044567,-460.0,0.00024109,6]
[366296963,1750179044577,-540.44120904,0.00024109,6]
[366296964,1750179044587,-440.0,0.00024109,6]
[366296966,1750179044597,-460.0,0.00024109,6]
[366296968,1750179044607,-460.0,0.00024109,6]
[366296970,1750179044617,-1387.06,0.00024109,6]
[366296972,1750179044626,-151.0,0.00024136,7]
[366296974,1750179044637,-151.0,0.00024136,7]
[366296976,1750179044646,-151.0,0.00024136,7]
[366296978,1750179044656,-151.0,0.00024136,7]
[366296980,1750179044666,-419.75326746,0.00024136,6]
[366296982,1750179044676,-460.0,0.00024136,6]
[366296984,1750179044688,-460.0,0.00024136,6]
[366296986,1750179044698,-407.62562123,0.00024136,6]
[366296988,1750179044707,-207.25015197,0.00024136,6]
[366296990,1750179044717,-460.0,0.00024136,6]
[366296992,1750179044727,-460.0,0.00024136,6]
[366296994,1750179044736,-460.0,0.00024136,6]
[366296996,1750179044746,-508.11,0.00024136,6]
[366296998,1750179044755,-192.97473504,0.00024136,6]
[366297000,1750179044765,-460.0,0.00024136,6]
[366297002,1750179044774,-440.0,0.00024136,6]
[366297004,1750179044784,-250.0,0.00024136,6]
[366297006,1750179044793,-460.0,0.00024136,6]
[366297008,1750179044803,-179.02805812,0.00024136,6]
[366297010,1750179044813,-460.0,0.00024136,6]
[366297012,1750179044823,-460.0,0.00024136,6]
[366297014,1750179044832,-151.0,0.00024136,7]
[366297016,1750179044842,-460.0,0.00024136,6]
[366297018,1750179044851,-460.0,0.00024136,6]
[366297020,1750179044861,-460.0,0.00024136,6]
[366297022,1750179044871,-460.0,0.00024136,6]
[366297024,1750179044881,-460.0,0.00024136,6]
[366297026,1750179044891,-479.85,0.00024136,6]
[366297028,1750179044901,-460.0,0.00024136,6]
[366297030,1750179044910,-316.7958208,0.00024136,6]
[366297032,1750179044920,-460.0,0.00024136,6]
[366297034,1750179044929,-460.0,0.00024136,6]
[366297036,1750179044941,-460.0,0.00024136,6]
[366297038,1750179044951,-460.0,0.00024136,6]